fUST/lending_fUST_20251006
["ID","MTS","AMOUNT","RATE_DAILY","PERIOD"]
[389540672,1759707048560,-984.0,0.00018082,2]
[389540673,1759707048570,-500.0,0.00018082,2]
[389540674,1759707048580,-500.0,0.00018082,2]
[389540675,1759707048589,-621.98,0.00018082,2]
[389540676,1759707048599,-529.2,0.00018082,2]
[389540677,1759707048608,-500.0,0.00018082,2]
[389540678,1759707048617,-601.82,0.00018082,2]
[389540679,1759707048627,-500.0,0.00018082,2]
[389540680,1759707048636,-500.0,0.00018082,2]
[389540681,1759707048646,-500.0,0.00018082,2]
[389540682,1759707048655,-500.0,0.00018082,2]
[389540683,1759707048664,-198.0,0.00018082,2]
[389540684,1759707048674,-447.65397459,0.00018082,2]
[389540685,1759707048683,-151.0,0.00018082,2]
[389540686,1759707048693,-556.22,0.00018082,2]
[389540687,1759707048702,-500.0,0.00018082,2]
[389540688,1759707048712,-500.0,0.00018082,2]
[389540689,1759707048721,-705.08,0.00018082,2]
[389540690,1759707048731,-151.0,0.00018082,2]
[389540691,1759707048740,-524.82,0.00018082,2]
[389540692,1759707048750,-637.71,0.00018082,2]
[389540693,1759707048759,-500.0,0.00018082,2]
[389540694,1759707048768,-151.0,0.00018082,2]
[389540695,1759707048778,-500.0,0.00018082,2]
[389540696,1759707048788,-1254.34,0.00018082,2]
[389540697,1759707048799,-500.0,0.00018082,2]
[389540698,1759707048808,-1198.68,0.00018082,2]
[389540699,1759707048819,-500.0,0.00018082,2]
[389540700,1759707048828,-500.0,0.00018082,2]
[389540701,1759707048837,-597.65,0.00018082,2]
[389540702,1759707048847,-579.91065967,0.00018082,2]
[389540703,1759707048856,-3132.62,0.00018082,2]
[389540704,1759707048866,-1179.24,0.00018082,2]
[389540705,1759707048876,-269.98146398,0.00018082,2]
[389540706,1759707048886,-588.36,0.00018082,2]
[389540707,1759707048895,-699.68,0.00018082,2]
[389540708,1759707048904,-571.48,0.00018082,2]
[389540709,1759707048914,-523.16,0.00018082,2]
[389540710,1759707048924,-500.0,0.00018082,2]
[389540711,1759707048934,-654.39,0.00018082,2]
[389540712,1759707048944,-1201.9,0.00018082,2]
[389540713,1759707048953,-7049.0,0.00018082,2]
[389540714,1759707048963,-2482.71,0.00018082,2]
[389540715,1759707048973,-500.0,0.00018082,2]
[389540716,1759707048983,-1693.32,0.00018082,2]
[389540717,1759707049123,-500.0,0.00018082,2]
[389540718,1759707049151,-506.84,0.00018082,2]
[389540719,1759707049161,-520.09,0.00018082,2]
[389540720,1759707049171,-500.0,0.00018082,2]
[389540721,1759707049181,-2574.47,0.00018082,2]
[389540722,1759707049190,-500.0,0.00018082,2]
[389540723,1759707049199,-3678.41,0.00018082,2]
[389540724,1759707049209,-500.0,0.00018082,2]
[389540725,1759707049218,-1053.35,0.00018082,2]
[389540726,1759707049228,-500.0,0.00018082,2]
[389540727,1759707049237,-895.31,0.00018082,2]
[389540728,1759707049247,-796.37,0.00018082,2]
[389540729,1759707049256,-642.5,0.00018082,2]
[389540730,1759707049265,-500.0,0.00018082,2]
[389540731,1759707049274,-665.4,0.00018082,2]
[389540732,1759707049283,-591.81,0.00018082,2]
[389540733,1759707049292,-1097.96,0.00018082,2]
[389540734,1759707049301,-3034.54,0.00018082,2]
[389540735,1759707049310,-10165.67,0.00018082,2]
[389540736,1759707049320,-863.73,0.00018082,2]
[389540737,1759707049329,-151.0,0.00018082,2]
[389540738,1759707049338,-510.28,0.00018082,2]
[389540739,1759707049348,-1212.43,0.00018082,2]
[389540740,1759707049357,-1471.64,0.00018082,2]
[389540741,1759707049366,-500.0,0.00018082,2]
[389540742,1759707049375,-500.0,0.00018082,2]
[389540743,1759707049384,-716.6,0.00018082,2]
[389540744,1759707049394,-1993.37,0.00018082,2]
[389540745,1759707049404,-198.0,0.00018082,2]
[389540746,1759707049413,-151.0,0.00018082,2]
[389540747,1759707049423,-151.0,0.00018082,2]
[389540748,1759707049432,-159.598453,0.00018082,2]
[389540749,1759707049442,-259.87939068,0.00018082,2]
[389540750,1759707049451,-3488.38,0.00018082,2]
[389540751,1759707049461,-500.0,0.00018082,2]
[389540752,1759707049470,-198.13239105,0.00018082,2]
[389540753,1759707049480,-151.0,0.00018082,2]
[389540754,1759707049489,-501.56,0.00018082,2]
[389540755,1759707049499,-784.63,0.00018082,2]
[389540756,1759707049508,-500.0,0.00018082,2]
[389540757,1759707049517,-1678.51,0.00018082,2]
[389540758,1759707049527,-1165.0,0.00018082,2]
[389540759,1759707049537,-500.0,0.00018082,2]
[389540760,1759707049546,-500.0,0.00018082,2]
[389540761,1759707049555,-500.0,0.00018082,2]
[389540762,1759707049564,-151.0,0.00018082,2]
[389540763,1759707049574,-276.15062357,0.00018082,2]
[389540764,1759707049584,-500.0,0.00018082,2]
[389540765,1759707049593,-3620.77,0.00018082,2]
[389540766,1759707049602,-151.0,0.00018082,2]
[389540767,1759707049612,-8910.17,0.00018082,2]
[389540768,1759707049621,-500.0,0.00018082,2]
[389540769,1759707049631,-151.0,0.00018082,2]
[389540770,1759707049641,-500.0,0.00018082,2]
[389540771,1759707049651,-500.0,0.00018082,2]
[389540772,1759707049660,-2155.57,0.00018082,2]
[389540773,1759707049670,-500.0,0.00018082,2]
[389540774,1759707049679,-963.09,0.00018082,2]
[389540775,1759707049688,-500.0,0.00018082,2]
[389540776,1759707049698,-751.79,0.00018082,2]
[389540777,1759707049708,-1309.22,0.00018082,2]
[389540778,1759707049717,-5211.29,0.00018082,2]
[389540779,1759707049727,-500.0,0.00018082,2]
[389540780,1759707049736,-795.02,0.00018082,2]
[389540781,1759707049745,-754.0,0.00018082,2]
[389540782,1759707049755,-754.0,0.00018082,2]
[389540783,1759707049765,-500.0,0.00018082,2]
[389540784,1759707049775,-513.51,0.00018082,2]
[389540785,1759707049784,-1179.45,0.00018082,2]
[389540786,1759707049799,-911.49,0.00018082,2]
[389540787,1759707049808,-500.0,0.00018082,2]
[389540788,1759707049819,-536.49,0.00018082,2]
[389540789,1759707049828,-500.0,0.00018082,2]
[389540790,1759707049838,-1687.298333,0.00018082,2]
[389540791,1759707049847,-160.0,0.00018118,2]
[389540792,1759707049856,-234.13847417,0.00018118,2]
[389540793,1759707049866,-533.57524315,0.00018118,2]
[389540794,1759707049876,-293.57808533,0.00018118,2]
[389540795,1759707049886,-160.0,0.00018118,2]
[389540796,1759707049895,-160.0,0.00018118,2]
[389540797,1759707049905,-168.0,0.00018147,2]
[389540798,1759707049914,-420.0,0.00018165,2]
[389540799,1759707049924,-980.0,0.00018167,2]
[389540800,1759707049933,-2158.0,0.00018167,2]
[389540801,1759707049942,-630.0,0.00018167,2]
[389540802,1759707049952,-410.0,0.00018167,2]
[389540803,1759707049962,-433.472,0.00018167,2]
[389540804,1759707049971,-168.0,0.00018184,2]
[389540805,1759707049981,-151.0,0.000182,2]
[389540806,1759707049991,-153.0,0.00018204,2]
[389540807,1759707050000,-150.0,0.00018209,2]
[389540808,1759707050011,-150.0,0.00018209,2]
[389540809,1759707050021,-20746.26328358,0.00018283,2]
[389540810,1759707050031,-940.29413678,0.00018319,2]
[389540811,1759707050040,-500.0,0.00018319,2]
[389540812,1759707050049,-406.06007539,0.00018319,2]
[389540813,1759707050059,-1000.0,0.00018319,2]
[389540814,1759707050068,-1000.0,0.00018319,2]
[389540815,1759707050077,-1000.0,0.00018319,2]
[389540816,1759707050086,-1000.0,0.00018319,2]
[389540817,1759707050096,-500.0,0.00018319,2]
[389540818,1759707050105,-1000.0,0.00018319,2]
[389540819,1759707050114,-1000.0,0.00018319,2]
[389540820,1759707050124,-1000.0,0.00018319,2]
[389540821,1759707050133,-1000.0,0.00018319,2]
[389540822,1759707050143,-915.27919581,0.00018319,2]
[389540823,1759707050152,-1000.0,0.00018319,2]
[389540824,1759707050162,-1002.51949867,0.00018319,2]
[389540825,1759707050171,-1000.0,0.00018319,2]
[389540826,1759707050181,-1000.0,0.00018327,2]
[389540827,1759707050190,-1000.0,0.00018327,2]
[389540828,1759707050199,-500.0,0.00018338,2]
[389540829,1759707050208,-1000.0,0.00018348,2]
[389540830,1759707050218,-6197.37465542,0.0001835,2]
[389540831,1759707050227,-483.0,0.00018354,2]
[389540832,1759707050236,-500.0,0.00018356,2]
[389540833,1759707050244,-500.0,0.00018356,2]
[389540834,1759707050254,-500.0,0.00018356,2]
[389540835,1759707050263,-151.0,0.00018356,2]
[389540836,1759707050272,-151.0,0.00018356,2]
[389540837,1759707050282,-198.0,0.00018356,2]
[389540838,1759707050291,-151.0,0.00018356,2]
[389540839,1759707050300,-500.0,0.00018356,2]
[389540840,1759707050310,-537.66048517,0.00018356,2]
[389540841,1759707050319,-1165.0,0.00018356,2]
[389540842,1759707050328,-151.0,0.00018356,2]
[389540843,1759707050337,-500.0,0.00018356,2]
[389540844,1759707050346,-500.0,0.00018356,2]
[389540845,1759707050356,-500.0,0.00018356,2]
[389540846,1759707050365,-1108.61,0.00018356,2]
[389540847,1759707050375,-500.0,0.00018356,2]
[389540848,1759707050384,-984.0,0.00018356,2]
[389540849,1759707050393,-500.0,0.00018356,2]
[389540850,1759707050402,-500.0,0.00018356,2]
[389540851,1759707050412,-621.98,0.00018356,2]
[389540852,1759707050421,-529.2,0.00018356,2]
[389540853,1759707050430,-500.0,0.00018356,2]
[389540854,1759707050439,-601.82,0.00018356,2]
[389540855,1759707050448,-500.0,0.00018356,2]
[389540856,1759707050457,-500.0,0.00018356,2]
[389540857,1759707050466,-500.0,0.00018356,2]
[389540858,1759707050475,-500.0,0.00018356,2]
[389540859,1759707050484,-556.22,0.00018356,2]
[389540860,1759707050494,-500.0,0.00018356,2]
[389540861,1759707050503,-500.0,0.00018356,2]
[389540862,1759707050513,-705.08,0.00018356,2]
[389540863,1759707050523,-151.0,0.00018356,2]
[389540864,1759707050532,-524.82,0.00018356,2]
[389540865,1759707050541,-637.71,0.00018356,2]
[389540866,1759707050551,-500.0,0.00018356,2]
[389540867,1759707050560,-500.0,0.00018356,2]
[389540868,1759707050569,-1254.34,0.00018356,2]
[389540869,1759707050579,-500.0,0.00018356,2]
[389540870,1759707050588,-1198.68,0.00018356,2]
[389540871,1759707050597,-500.0,0.00018356,2]
[389540872,1759707050606,-467.02153058,0.00018356,2]
[389540873,1759707050615,-1179.24,0.00018356,2]
[389540874,1759707050624,-3132.62,0.00018356,2]
[389540875,1759707050634,-588.36,0.00018356,2]
[389540876,1759707050643,-699.68,0.00018356,2]
[389540877,1759707050652,-571.48,0.00018356,2]
[389540878,1759707050661,-523.16,0.00018356,2]
[389540879,1759707050670,-500.0,0.00018356,2]
[389540880,1759707050680,-654.39,0.00018356,2]
[389540881,1759707050689,-1201.9,0.00018356,2]
[389540882,1759707050699,-7049.0,0.00018356,2]
[389540883,1759707050708,-2482.71,0.00018356,2]
[389540884,1759707050717,-500.0,0.00018356,2]
[389540885,1759707050727,-1693.32,0.00018356,2]
[389540886,1759707050736,-500.0,0.00018356,2]
[389540887,1759707050745,-506.84,0.00018356,2]
[389540888,1759707050754,-520.09,0.00018356,2]
[389540889,1759707050763,-500.0,0.00018356,2]
[389540890,1759707050772,-2574.47,0.00018356,2]
[389540891,1759707050782,-500.0,0.00018356,2]
[389540892,1759707050796,-3678.41,0.00018356,2]
[389540893,1759707050805,-305.12067635,0.00018356,2]
[389540894,1759707050815,-1053.35,0.00018356,2]
[389540895,1759707050824,-500.0,0.00018356,2]
[389540896,1759707050833,-895.31,0.00018356,2]
[389540897,1759707050842,-796.37,0.00018356,2]
[389540898,1759707050851,-642.5,0.00018356,2]
[389540899,1759707050861,-500.0,0.00018356,2]
[389540900,1759707050870,-665.4,0.00018356,2]
[389540901,1759707050880,-591.81,0.00018356,2]
[389540902,1759707050889,-1097.96,0.00018356,2]
[389540903,1759707050898,-3034.54,0.00018356,2]
[389540904,1759707050907,-10165.67,0.00018356,2]
[389540905,1759707050916,-863.73,0.00018356,2]
[389540906,1759707050926,-151.0,0.00018356,2]
[389540907,1759707050935,-510.28,0.00018356,2]
[389540908,1759707050944,-1212.43,0.00018356,2]
[389540909,1759707050953,-1471.64,0.00018356,2]
[389540910,1759707050962,-500.0,0.00018356,2]
[389540911,1759707050971,-500.0,0.00018356,2]
[389540912,1759707050981,-716.6,0.00018356,2]
[389540913,1759707050990,-1993.37,0.00018356,2]
[389540914,1759707050999,-151.0,0.00018356,2]
[389540915,1759707051008,-151.0,0.00018356,2]
[389540916,1759707051017,-3488.38,0.00018356,2]
[389540917,1759707051026,-501.56,0.00018356,2]
[389540918,1759707051035,-784.63,0.00018356,2]
[389540919,1759707051044,-1678.51,0.00018356,2]
[389540920,1759707051054,-500.0,0.00018356,2]
[389540921,1759707051063,-325.86891449,0.00018356,2]
[389540922,1759707051072,-500.0,0.00018356,2]
[389540923,1759707051081,-3620.77,0.00018356,2]
[389540924,1759707051090,-8910.17,0.00018356,2]
[389540925,1759707051099,-500.0,0.00018356,2]
[389540926,1759707051108,-387.3,0.00018356,2]
[389540927,1759707051118,-500.0,0.00018356,2]
[389540928,1759707051127,-2155.57,0.00018356,2]
[389540929,1759707051136,-500.0,0.00018356,2]
[389540930,1759707051145,-963.09,0.00018356,2]
[389540931,1759707051154,-500.0,0.00018356,2]
[389540932,1759707051163,-751.79,0.00018356,2]
[389540933,1759707051172,-1309.22,0.00018356,2]
[389540934,1759707051181,-5211.29,0.00018356,2]
[389540935,1759707051190,-500.0,0.00018356,2]
[389540936,1759707051200,-754.0,0.00018356,2]
[389540937,1759707051208,-795.02,0.00018356,2]
[389540938,1759707051218,-754.0,0.00018356,2]
[389540939,1759707051227,-500.0,0.00018356,2]
[389540940,1759707051237,-513.51,0.00018356,2]
[389540941,1759707051246,-1179.45,0.00018356,2]
[389540942,1759707051255,-911.49,0.00018356,2]
[389540943,1759707051264,-536.49,0.00018356,2]
[389540944,1759707051273,-500.0,0.00018356,2]
[389540945,1759707051282,-160.0,0.00018387,2]
[389540946,1759707051291,-12357.06857415,0.000184,2]
[389540947,1759707051301,-2136.39811135,0.000184,2]
[389540948,1759707051310,-500.0,0.00018403,2]
[389540949,1759707051320,-513.27823922,0.00018403,2]
[389540950,1759707051329,-1000.0,0.00018403,2]
[389540951,1759707051339,-168.0,0.0001841,2]
[389540952,1759707051348,-36368.16846107,0.00018442,2]
[389540953,1759707051357,-720.0,0.00018442,2]
[389540954,1759707051367,-500.0,0.00018473,2]
[389540955,1759707051376,-500.0,0.00018473,2]
[389540956,1759707051427,-500.0,0.00018473,2]
[389540957,1759707051436,-500.0,0.00018473,2]
[389540958,1759707051446,-165.11033691,0.00018473,2]
[389540959,1759707051455,-500.0,0.00018473,2]
[389540960,1759707051465,-500.0,0.00018473,2]
[389540961,1759707051475,-200.0,0.00018499,2]
[389540962,1759707051484,-161.78556266,0.00018499,2]
[389540963,1759707051494,-750128.46572652,0.000185,2]
[389540964,1759707051503,-319937.21461863,0.000185,2]
[389540965,1759707051512,-87772.95800749,0.000185,2]
[389540966,1759707134698,1999.79401476,0.00031776,60]
[389540990,1759707283791,189.244333,0.00015438,2]
[389540992,1759707438598,1350.0,0.00031661,60]
[389540995,1759707551158,2550.0,0.000285,120]
[389540996,1759707608952,199.81,0.00028767,120]
[389540997,1759707625599,915.12503621,0.00031679,120]
[389540998,1759707902574,500.0,0.00028,120]
[389540999,1759707937945,1200.0,0.000284,120]
[389541000,1759707992300,914.0,0.000284,120]
[389541001,1759708004667,3500.0,0.000284,120]
[389541005,1759708029251,2100.0,0.000284,120]
[389541006,1759708076124,539.478313,0.00015433,2]
[389541007,1759708167184,500.0,0.00027397,120]
[389541010,1759708232299,-300.0,0.00016338,2]
[389541011,1759708232308,-178.36909989,0.00016338,2]
[389541012,1759708232317,-6511.00637604,0.00016338,2]
[389541013,1759708232326,-1200.0,0.00016425,2]
[389541014,1759708232335,-1200.0,0.00016426,2]
[389541015,1759708232344,-300.0,0.00016426,2]
[389541016,1759708232353,-300.0,0.00016426,2]
[389541017,1759708232362,-1750.25,0.00016428,3]
[389541019,1759708232371,-875.12,0.00016428,3]
[389541021,1759708232380,-437.56,0.00016428,3]
[389541024,1759708232389,-218.78,0.00016428,3]
[389541026,1759708232398,-656.38,0.00016428,3]
[389541028,1759708232407,-336.75625368,0.00016437,2]
[389541031,1759708232420,-243.10783559,0.00016437,2]
[389541034,1759708232430,-422.70388748,0.00016437,2]
[389541037,1759708232440,-293.01697565,0.00016437,2]
[389541040,1759708232457,-500.0,0.00016438,2]
[389541043,1759708232466,-285.10279947,0.00016438,2]
[389541046,1759708232475,-480.0,0.00016438,2]
[389541049,1759708232484,-500.0,0.00016438,2]
[389541052,1759708232494,-500.0,0.00016438,2]
[389541054,1759708232503,-480.0,0.00016438,2]
[389541056,1759708232511,-500.0,0.00016438,2]
[389541058,1759708232520,-500.0,0.00016438,2]
[389541060,1759708232530,-500.0,0.00016438,2]
[389541062,1759708232538,-500.0,0.00016438,2]
[389541064,1759708232547,-500.0,0.00016438,2]
[389541066,1759708232556,-480.0,0.00016438,2]
[389541068,1759708232565,-500.0,0.00016438,2]
[389541070,1759708232574,-480.0,0.00016438,2]
[389541072,1759708232583,-500.0,0.00016438,2]
[389541074,1759708232592,-540.81,0.00016438,2]
[389541076,1759708232601,-480.0,0.00016438,2]
[389541077,1759708232611,-480.0,0.00016438,2]
[389541080,1759708232620,-480.0,0.00016438,2]
[389541082,1759708232630,-480.0,0.00016438,2]
[389541084,1759708232640,-201.7797818,0.00016438,2]
[389541086,1759708232650,-157.48438367,0.00016438,2]
[389541088,1759708232659,-480.0,0.00016438,2]
[389541089,1759708232669,-104.77284022,0.00016438,2]
[389541180,1759708238301,-375.22715978,0.00016438,2]
[389541181,1759708238311,-480.0,0.00016438,2]
[389541182,1759708238320,-500.0,0.00016438,2]
[389541183,1759708238330,-511.94,0.00016438,2]
[389541184,1759708238339,-500.0,0.00016438,2]
[389541185,1759708238348,-480.0,0.00016438,2]
[389541186,1759708238358,-480.0,0.00016438,2]
[389541187,1759708238367,-480.0,0.00016438,2]
[389541188,1759708238376,-480.0,0.00016438,2]
[389541189,1759708238386,-480.0,0.00016438,2]
[389541190,1759708238395,-500.0,0.00016438,2]
[389541191,1759708238405,-480.0,0.00016438,2]
[389541192,1759708238416,-500.0,0.00016438,2]
[389541193,1759708238426,-480.0,0.00016438,2]
[389541194,1759708238436,-480.0,0.00016438,2]
[389541195,1759708238445,-500.0,0.00016438,2]
[389541196,1759708238454,-500.0,0.00016438,2]
[389541197,1759708238464,-500.0,0.00016438,2]
[389541198,1759708238473,-500.0,0.00016438,2]
[389541199,1759708238482,-500.0,0.00016438,2]
[389541200,1759708238492,-500.0,0.00016438,2]
[389541201,1759708238501,-500.0,0.00016438,2]
[389541202,1759708238511,-500.0,0.00016438,2]
[389541203,1759708238520,-500.0,0.00016438,2]
[389541204,1759708238529,-500.0,0.00016438,2]
[389541205,1759708238538,-500.0,0.00016438,2]
[389541206,1759708238547,-500.0,0.00016438,2]
[389541207,1759708238556,-500.0,0.00016438,2]
[389541208,1759708238566,-500.0,0.00016438,2]
[389541209,1759708238575,-500.0,0.00016438,2]
[389541210,1759708238584,-500.0,0.00016438,2]
[389541211,1759708238593,-500.0,0.00016438,2]
[389541212,1759708238602,-500.0,0.00016438,2]
[389541213,1759708238611,-500.0,0.00016438,2]
[389541214,1759708238619,-500.0,0.00016438,2]
[389541215,1759708238628,-500.0,0.00016438,2]
[389541216,1759708238637,-500.0,0.00016438,2]
[389541217,1759708238646,-500.0,0.00016438,2]
[389541218,1759708238655,-500.0,0.00016438,2]
[389541219,1759708238664,-500.0,0.00016438,2]
[389541220,1759708238674,-500.0,0.00016438,2]
[389541221,1759708238683,-500.0,0.00016438,2]
[389541222,1759708238692,-500.0,0.00016438,2]
[389541223,1759708238701,-500.0,0.00016438,2]
[389541224,1759708238710,-500.0,0.00016438,2]
[389541225,1759708238719,-480.0,0.00016438,2]
[389541226,1759708238728,-500.0,0.00016438,2]
[389541227,1759708238738,-480.0,0.00016438,2]
[389541228,1759708238747,-480.0,0.00016438,2]
[389541229,1759708238756,-500.0,0.00016438,2]
[389541230,1759708238765,-500.0,0.00016438,2]
[389541231,1759708238775,-156.7048081,0.00016438,2]
[389541232,1759708238784,-595.9,0.00016438,2]
[389541233,1759708238794,-541.80988713,0.00016438,2]
[389541234,1759708238803,-500.0,0.00016438,2]
[389541235,1759708238812,-500.0,0.00016438,2]
[389541236,1759708238821,-500.0,0.00016438,2]
[389541237,1759708238830,-500.0,0.00016438,2]
[389541238,1759708238840,-500.0,0.00016438,2]
[389541239,1759708238850,-500.0,0.00016438,2]
[389541240,1759708238860,-500.0,0.00016438,2]
[389541241,1759708238870,-500.0,0.00016438,2]
[389541242,1759708238880,-500.0,0.00016438,2]
[389541243,1759708238889,-500.0,0.00016438,2]
[389541244,1759708238899,-500.0,0.00016438,2]
[389541245,1759708238908,-500.0,0.00016438,2]
[389541246,1759708238918,-500.0,0.00016438,2]
[389541247,1759708238927,-500.0,0.00016438,2]
[389541248,1759708238937,-480.0,0.00016438,2]
[389541249,1759708238947,-500.0,0.00016438,2]
[389541250,1759708238956,-500.0,0.00016438,2]
[389541251,1759708238965,-500.0,0.00016438,2]
[389541252,1759708238975,-1218.9,0.00016438,2]
[389541253,1759708238985,-500.0,0.00016438,2]
[389541254,1759708238994,-594.9,0.00016438,2]
[389541255,1759708239003,-500.0,0.00016438,2]
[389541256,1759708239012,-500.0,0.00016438,2]
[389541257,1759708239021,-500.0,0.00016438,2]
[389541258,1759708239031,-500.0,0.00016438,2]
[389541259,1759708239040,-500.0,0.00016438,2]
[389541260,1759708239049,-500.0,0.00016438,2]
[389541261,1759708239059,-642.5,0.00016438,2]
[389541262,1759708239069,-500.0,0.00016438,2]
[389541263,1759708239078,-558.64,0.00016438,2]
[389541264,1759708239087,-500.0,0.00016438,2]
[389541265,1759708239097,-636.39269527,0.00016438,2]
[389541266,1759708239107,-500.0,0.00016438,2]
[389541267,1759708239116,-500.0,0.00016438,2]
[389541268,1759708239127,-500.0,0.00016438,2]
[389541269,1759708239136,-500.0,0.00016438,2]
[389541270,1759708239146,-500.0,0.00016438,2]
[389541271,1759708239155,-500.0,0.00016438,2]
[389541272,1759708239164,-480.0,0.00016438,2]
[389541273,1759708239174,-1014.98,0.00016438,2]
[389541274,1759708239183,-500.0,0.00016438,2]
[389541275,1759708239192,-500.0,0.00016438,2]
[389541276,1759708239205,-500.0,0.00016438,2]
[389541277,1759708239214,-500.0,0.00016438,2]
[389541278,1759708239223,-480.0,0.00016438,2]
[389541279,1759708239232,-500.0,0.00016438,2]
[389541280,1759708239241,-640.19,0.00016438,2]
[389541281,1759708239250,-480.0,0.00016438,2]
[389541282,1759708239260,-500.0,0.00016438,2]
[389541283,1759708239270,-500.0,0.00016438,2]
[389541284,1759708239280,-500.0,0.00016438,2]
[389541285,1759708239289,-480.0,0.00016438,2]
[389541286,1759708239298,-500.0,0.00016438,2]
[389541287,1759708239308,-500.0,0.00016438,2]
[389541288,1759708239317,-500.0,0.00016438,2]
[389541289,1759708239327,-500.0,0.00016438,2]
[389541290,1759708239336,-500.0,0.00016438,2]
[389541291,1759708239346,-779.48,0.00016438,2]
[389541292,1759708239355,-197.9583628,0.00016438,2]
[389541293,1759708239365,-1558.41,0.00016438,2]
[389541294,1759708239374,-1558.41,0.00016438,2]
[389541295,1759708239384,-1558.41,0.00016438,2]
[389541296,1759708239393,-1558.41,0.00016438,2]
[389541297,1759708239402,-500.0,0.00016438,2]
[389541298,1759708239413,-1558.41,0.00016438,2]
[389541299,1759708239424,-1558.41,0.00016438,2]
[389541300,1759708239436,-1558.41,0.00016438,2]
[389541301,1759708239445,-1558.41,0.00016438,2]
[389541302,1759708239455,-1558.41,0.00016438,2]
[389541303,1759708239464,-1558.41,0.00016438,2]
[389541304,1759708239474,-500.0,0.00016438,2]
[389541305,1759708239483,-500.0,0.00016438,2]
[389541306,1759708239493,-500.0,0.00016438,2]
[389541307,1759708239503,-284.97416766,0.00016438,2]
[389541308,1759708239512,-500.0,0.00016438,2]
[389541309,1759708239521,-500.0,0.00016438,2]
[389541310,1759708239530,-500.0,0.00016438,2]
[389541311,1759708239539,-500.0,0.00016438,2]
[389541312,1759708239548,-500.0,0.00016438,2]
[389541313,1759708239558,-500.0,0.00016438,2]
[389541314,1759708239567,-504.36489662,0.00016438,2]
[389541315,1759708239579,-500.0,0.00016438,2]
[389541316,1759708239589,-500.0,0.00016438,2]
[389541317,1759708239599,-363.78192174,0.00016438,2]
[389541318,1759708239609,-548.08,0.00016438,2]
[389541319,1759708239618,-500.0,0.00016438,2]
[389541320,1759708239629,-500.0,0.00016438,2]
[389541321,1759708239639,-500.0,0.00016438,2]
[389541322,1759708239650,-500.0,0.00016438,2]
[389541323,1759708239660,-500.0,0.00016438,2]
[389541324,1759708239672,-500.0,0.00016438,2]
[389541325,1759708239681,-500.0,0.00016438,2]
[389541326,1759708239693,-500.0,0.00016438,2]
[389541327,1759708239703,-500.0,0.00016438,2]
[389541328,1759708239712,-1104.3,0.00016438,2]
[389541329,1759708239722,-766.56,0.00016438,2]
[389541330,1759708239732,-500.0,0.00016438,2]
[389541331,1759708239741,-500.0,0.00016438,2]
[389541332,1759708239751,-500.0,0.00016438,2]